Cogmind - Beta 15 @@@ ROGUE MODE // 2025.05.10 @ 23:01:30 Player: Skysub Result: Destroyed by 4O-6NA(R) with Subdweller Machine Gun Performance ------------- Evolutions (0) 0 Regions Visited (2) 400 Robots Destroyed (27) 135 Value Destroyed (578) 578 Prototype IDs (0) 0 Alien Tech Used (0) 0 Bonus (0) 0 TOTAL SCORE: 1113 Bonus ------- None Cogmind --------- Core Integrity 0/250 Matter 300/300 Energy 100/100 System Corruption 1% Temperature Cool (0) Movement Core (350) Ox6 Location -10/Subcaves Parts ------- > --- POWER (1) -------- (None) > --- PROPULSION (2) --- (None) > --- UTILITY (2) ------ Large Storage Unit Targeting Computer > --- WEAPON (2) ------- (None) > --- INVENTORY (15) --- Ion Engine Small Storage Unit Signal Interpreter Signal Interpreter Improved Terrain Scanner Propulsion Shielding Peak State ------------ > --- POWER ------------ Light Nuclear Core > --- PROPULSION ------- Light Treads Light Treads > --- UTILITY ---------- Large Storage Unit Improved Terrain Scanner > --- WEAPON ----------- Small Laser Light Assault Rifle > --- INVENTORY -------- Small Storage Unit Signal Interpreter Signal Interpreter Targeting Computer Propulsion Shielding [Rating: 11] Favorites ----------- Power Light Ion Engine Engine Light Ion Engine Power Core Light Nuclear Core Propulsion Light Treads Treads Light Treads Wheel Wheel Utility Improved Terrain Scanner Device Improved Terrain Scanner Storage Large Storage Unit Processor Targeting Computer Weapon Small Laser Energy Gun Small Laser Ballistic Gun Light Assault Rifle Build | -11 -10 -10 ------- Run | Yrd Mat Sub Slots Evolved . | . . . Power . | . . . Propulsion . | . . . Utility . | . . . Weapon . | . . . Parts Attached 16 | 7 8 1 Power 4 | 1 3 . Engine 3 | 1 2 . Core 1 | . 1 . Reactor . | . . . Propulsion 4 | 2 2 . Treads 2 | . 2 . Leg . | . . . Wheel 2 | 2 . . Hover . | . . . Flight . | . . . Utility 4 | 2 1 1 Device 1 | 1 . . Storage 2 | 1 1 . Processor 1 | . . 1 Hackware . | . . . Protection . | . . . Artifact . | . . . Weapon 4 | 2 2 . Energy Gun 2 | 1 1 . Energy Cannon . | . . . Ballistic Gun 2 | 1 1 . Ballistic Cannon . | . . . Launcher . | . . . Special Weapon . | . . . Impact Weapon . | . . . Slashing Weapon . | . . . Piercing Weapon . | . . . Special Melee Weapon . | . . . Unidentified Prototypes . | . . . Parts Lost 11 | . 6 5 Power 3 | . 2 1 Propulsion 4 | . 2 2 Utility . | . . . Weapon 4 | . 2 2 Highest Loss Streak 5 | . 5 5 To Critical Strikes 1 | . . 1 Average Backups 5 | 1 5 6 Power . | . . 1 Propulsion . | 1 . . Utility 3 | . 3 5 Weapon . | . . . Tool/Special . | . . . Unused Backups 4 | . . 4 Power 1 | . . 1 Propulsion . | . . . Utility 3 | . . 3 Weapon . | . . . Tool/Special . | . . . Average Slot Usage (%) 96 | . 96 97 Engine 9 | . 9 12 Core 3 | . 4 . Treads 18 | . 17 28 Wheel 9 | . 10 . Device 13 | . 14 12 Storage 14 | . 14 14 Energy Gun 11 | . 11 12 Ballistic Gun 14 | . 14 14 Peak Build Rating 11 | 9 11 9 Average Rating 8 | 5 9 8 On Entrance 6 | . 9 9 Naked Turns . | . . . Heaviest Build 28 | 12 28 28 Greatest Support 40 | 20 40 40 Greatest Overweight (x) 6 | 2 2 6 Average Overweight (x) . | . . . Largest Inventory Capacity 15 | 8 15 15 Average Capacity 14 | 7 14 15 Most Carried 6 | 2 6 6 Average Carried 5 | 1 5 6 Final Capacity 15 | 8 15 15 Final Carried 6 | 2 6 6 Class Distribution -------------------- 100% | Mutant Dominant Class ---------------- Mutant | -10/Materials Mutant | -10/Subcaves Resources | -11 -10 -10 ----------- Run | Yrd Mat Sub Matter Collected 511 | 286 219 6 Remotely . | . . . Salvage Created 824 | 123 701 . Parts 65 | 11 54 . Haulers Intercepted 1 | . 1 . Recyclers Shooed . | . . . Parts Field Recycled . | . . . Retrieved Matter . | . . . Parts Self-Destructed 4 | . . 4 Prevented . | . . . Kills | -11 -10 -10 ------- Run | Yrd Mat Sub Combat Hostiles Destroyed 19 | . 19 . Guns 19 | . 19 . Classes Destroyed 6 | 2 4 . Worker 1 | 1 . . Tunneler 4 | 4 . . Hauler 1 | . 1 . Watcher 2 | . 2 . Swarmer 6 | . 6 . Grunt 13 | . 13 . Best Kill Streak 3 | 3 3 . Combat Bots Only 3 | . 3 . Max Kills in Single Turn 1 | 1 1 . Gunslinging . | . . . Exploded . | . . . Melee . | . . . Uniques/NPCs Destroyed . | . . . Combat | -11 -10 -10 -------- Run | Yrd Mat Sub Hostile Shots Fired 115 | . 93 22 Missed 27 | . 26 1 Hits 88 | . 67 21 Projectile 88 | . 67 21 Critical Strikes 2 | . 1 1 Damage Taken 1241 | 5 767 469 Core 265 | . 179 86 Absorbed by Shields . | . . . Core Remaining (%) 100 | 100 . . Volleys Fired 94 | 11 77 6 Largest 2 | 2 2 2 Hottest 60 | 60 60 60 Shots Fired 162 | 22 131 9 Gun 162 | 22 131 9 Cannon . | . . . Launcher . | . . . Special . | . . . Kinetic 94 | 11 77 6 Thermal 68 | 11 54 3 Explosive . | . . . Electromagnetic . | . . . Robot Hit Streak 20 | 5 20 3 Robot Miss Streak 4 | 3 4 1 Penetration Max . | . . . Secondary Targets 2 | . 2 . Max Gunslinging Chain 1 | . 1 . Shots Hit Robots 112 | 12 94 6 Core Hits 48 | 5 40 3 Critical Kills . | . . . Critical Parts Destroyed 2 | . 2 . Critical Strikes 3 | . 2 1 Destroy 3 | . 2 1 Melee Attacks . | . . . Impact . | . . . Slashing . | . . . Piercing . | . . . Sneak Attacks . | . . . Combat Hostiles . | . . . Follow-up Attacks . | . . . Damage Inflicted 1172 | 152 974 46 Guns 1162 | 142 974 46 Cannons . | . . . Explosions . | . . . Melee . | . . . Ramming 10 | 10 . . Kinetic 606 | 65 505 36 Thermal 556 | 77 469 10 Explosive . | . . . Electromagnetic . | . . . Impact . | . . . Slashing . | . . . Piercing . | . . . Highest Corruption 1 | . 1 1 Average Corruption 1 | . 1 1 Corruption Purged . | . . . Corruption Blocked . | . . . Effects 7 | . 7 . Message Errors 1 | . 1 . Matter Fused 1 | . 1 . Energy Discharges 2 | . 2 . Data Loss (minor) 2 | . 2 . Data Loss (major) 1 | . 1 . Overload Shots . | . . . Overflow Damage . | . . . Projectiles . | . . . Explosions . | . . . Melee . | . . . Knockbacks . | . . . Impact . | . . . Kinetic . | . . . Secondary . | . . . Self-Inflicted Damage 5 | 5 . . Shots . | . . . Rammed 1 | 1 . . Targets Rammed 1 | 1 . . Kicked . | . . . Crushed . | . . . Highest Temperature 83 | . 83 . Average Temperature 29 | . 29 . Received Heat Transfer 420 | . 420 . Siege Activations . | . . . Martial Activations . | . . . Shielding Activations . | . . . Robots Disrupted . | . . . Combat Hostiles . | . . . Robots Corrupted . | . . . Combat Hostiles . | . . . Parts Fried . | . . . Impact Corruptions . | . . . Robots Melted . | . . . Combat Hostiles . | . . . Parts Melted . | . . . Heat Transferred 1275 | 175 1075 25 Parts Sabotaged . | . . . Parts Stolen . | . . . Parts Stripped . | . . . Power Chain Reactions . | . . . Alert | -11 -10 -10 ------- Run | Yrd Mat Sub Maximum Alert Level 1 | . 1 . Low Security (%) 97 | 100 96 . Level 1 2 | . 3 . Level 2 . | . . . Level 3 . | . . . Level 4 . | . . . Level 5 . | . . . High Security . | . . . Max Security . | . . . Peak Influence 229 | 10 229 . Initial 3 | . 3 . Average 117 | 1 130 . Influence Increases 575 | 25 550 . Destroy 0b10 Robot/C 380 | . 380 . Destroy 0b10 Robot/NC 40 | 25 15 . Destroy Leader 86 | . 86 . Successful Hack 21 | . 21 . Destroy Structure 3 | . 3 . Partial Spotted 15 | . 15 . Lose Combat Pursuer 30 | . 30 . Influence Decreases 575 | 20 446 109 Entered New Map 55 | . 2 53 Time Decay 440 | 20 384 36 Lost Part 80 | . 60 20 Squads Dispatched 6 | . 6 . Investigation 4 | . 4 . Extermination . | . . . Reinforcement 2 | . 2 . Assault . | . . . Garrison . | . . . Intercept . | . . . Searches Triggered . | . . . Construction Impeded . | . . . Haulers Reinforced . | . . . Active Scanning Responses . | . . . Cargo Convoy Interrupts . | . . . Stealth | -11 -10 -10 --------- Run | Yrd Mat Sub Distress Signals 1 | . 1 . Communications Jammed . | . . . Distress Signals . | . . . Times Spotted 31 | . 29 2 Peak Tracking Total 3 | . 3 2 Tactical Retreats 2 | . 2 . Traps | -11 -10 -10 ------- Run | Yrd Mat Sub Traps Triggered 1 | . 1 . Indirectly . | . . . Trap Hack Attempts . | . . . Triggered . | . . . Disarmed . | . . . Reprogrammed . | . . . Reused . | . . . Traps Extracted . | . . . Installed . | . . . Triggered . | . . . Machines | -11 -10 -10 ---------- Run | Yrd Mat Sub Machines Disabled . | . . . Max in Single Turn . | . . . Machines Repaired . | . . . Machines Dismantled . | . . . Machines Sabotaged . | . . . Overloaded Fab Kills . | . . . Hacking | -11 -10 -10 --------- Run | Yrd Mat Sub Machines Accessed 6 | . 6 . Terminals 6 | . 6 . Fabricators . | . . . Repair Stations . | . . . Recycling Units . | . . . Scanalyzers . | . . . Garrison Access . | . . . Total Hacks 19 | . 19 . Successful 10 | . 10 . Failed 9 | . 9 . Catastrophic 2 | . 2 . Database Lockouts . | . . . Manual 10 | . 10 . Terminals 19 | . 19 . Fabricators . | . . . Repair Stations . | . . . Recycling Units . | . . . Scanalyzers . | . . . Garrison Access . | . . . Terminal Hacks 6 | . 6 . Branch Access Points 1 | . 1 . Terminal Index 1 | . 1 . Dispatch Records 1 | . 1 . Registered Components 1 | . 1 . Zone Layout 2 | . 2 . Fabricator Hacks . | . . . Repair Station Hacks . | . . . Recycling Unit Hacks . | . . . Scanalyzer . | . . . Garrison Access Hacks . | . . . Unauthorized Hacks 4 | . 4 . Terminals 4 | . 4 . Botnet 4 | . 4 . Fabricators . | . . . Repair Stations . | . . . Recycling Units . | . . . Scanalyzers . | . . . Garrison Access . | . . . Data Cores Recovered . | . . . Used . | . . . Hacking Detections 5 | . 5 . Full Trace Events 4 | . 4 . Feedback Events 1 | . 1 . Corruption 1 | . 1 . Feedback Blocked . | . . . Robot Schematics Acquired . | . . . Robots Built . | . . . Authchips . | . . . Time . | . . . Total Robot Build Rating . | . . . Part Schematics Acquired . | . . . Parts Built . | . . . Authchips . | . . . Time . | . . . Total Part Build Rating . | . . . Parts Repaired . | . . . Time . | . . . Parts Recycled . | . . . Recycled Matter . | . . . Retrieved Matter . | . . . Retrieved Components . | . . . Parts Scanalyzed . | . . . Part Schematics Acquired . | . . . Parts Damaged . | . . . Bothacking | -11 -10 -10 ------------ Run | Yrd Mat Sub Used RIF Installer . | . . . Robots Hacked . | . . . Non-combat . | . . . Combat . | . . . Robot Hacks Applied . | . . . Relay Couplers Released . | . . . Fabnet Peak Effective % . | . . . Robots Rewired . | . . . Allies Hacked . | . . . Hacks Repelled . | . . . Allies | -11 -10 -10 -------- Run | Yrd Mat Sub Total Allies . | . . . Largest Group . | . . . Highest-Rated Group . | . . . Highest-Rated Ally . | . . . Total Orders . | . . . Ally Attacks . | . . . Total Damage . | . . . Kills . | . . . Allies Corrupted . | . . . Allies Melted . | . . . Intel | -11 -10 -10 ------- Run | Yrd Mat Sub Active Infowar (turns) 1064 | 11 975 78 Terrain 1064 | 11 975 78 Robot Analysis Total . | . . . Derelict Logs Recovered . | . . . Drone Launches . | . . . Drone Recoveries . | . . . Exploration | -11 -10 -10 ------------- Run | Yrd Mat Sub Turns Passed 1178 | 110 975 93 Spaces Moved 541 | 63 457 21 Core 5 | 4 . 1 Treads 265 | . 245 20 Legs . | . . . Wheels 271 | 59 212 . Hover . | . . . Flight . | . . . Fastest Speed 50 | 50 80 160 Average Speed 124 | 80 129 169 Slowest Speed 350 | 150 240 350 Overloaded Moves . | . . . Propulsion Burnouts . | . . . Robots Hopped . | . . . Potential Cave-ins . | . . . Cave-ins Triggered . | . . . Exploration Rate (%) 30 | 4 84 4 Regions Visited 2 Branch Regions 1 Pre-discovered Areas . | . . . Known Exits Taken . | . . . Unknown Exits Taken 2 | 1 1 . Scrap Searched . | . . . Spaces Dug . | . . . Terrain Destroyed . | . . . Melee . | . . . Projectile . | . . . AOE . | . . . Terrain Rammed . | . . . Walls Destroyed . | . . . Machines Disabled . | . . . Actions | -11 -10 -10 --------- Run | Yrd Mat Sub Total 885 | 96 717 72 Wait 227 | 13 170 44 Move 539 | 62 456 21 Hop . | . . . Pick Up 8 | 2 6 . Fast Attach 10 | 7 3 . Attach 3 | . 3 . Detach . | . . . Swap 3 | . 2 1 Drop . | . . . Fire 94 | 11 77 6 Melee . | . . . Ram 1 | 1 . . Kick . | . . . Crush . | . . . Escape Stasis . | . . . Rewire . | . . . Trap . | . . . Miscellaneous . | . . . Route ------- -11/Scrapyard -10/Materials (discovered 4 exits: [*Mat x2] / *Min / [*Sub]) -10/Subcaves History --------- Turn | Location | Event 6 | -11/Scrapyard | Discovered new exit (range 16) 111 | -11/Scrapyard | Entered Materials 149 | -10/Materials | Identified exit to Mines 314 | -10/Materials | Build established: Mutant 456 | -10/Materials | Core integrity fell below 50% 460 | -10/Materials | Discovered new exit (range 10) 492 | -10/Materials | Lost 5 parts (1p2n2w) 802 | -10/Materials | Discovered new exit (range 5) 1069 | -10/Materials | Discovered new exit (range 6) 1086 | -10/Materials | Entered Subcaves 1087 | -10/Subcaves | Approached by a straggling Scientist 1154 | -10/Subcaves | Ambushed by Subdwellers from Twisted Machinery 1161 | -10/Subcaves | Core integrity fell below 20% 1179 | -10/Subcaves | Destroyed by 4O-6NA(R) with Subdweller Machine Gun Last Messages --------------- AMBIENT_HEAT=-10 GOAL=ESCAPE Acquired 6 matter. HA-645(c): "Thank the algorithms! I was beginning to lose hope I'd never make it past all the Subs lurking out here." HA-645(c): "Hey, let me tag along and I can get us both out of this nasty situation. At least I think I can... The group I got separated from was talking about a shortcut back to the UFD." HA-645(c): "I think it's somewhere west of here" B3-F8C(R) emerges from the Twisted Machinery. Ion Engine destroyed. Sml. Laser destroyed. 4O-6NA(R) suffers critical hit (Destroy). D2-IWX(O) collects matter. Lgt. Assault Rifle destroyed. Critical hit (Destroy). Lgt. Treads destroyed. Map ----- +----------------------------------------------------+ | ??????????????????????? ???? ?????????????????? | | ???????????????????????????? #? ???????????????? | | ???????????????????????????## #? ???????????????? | | ???????????????????????????? ? ??????????????? | | ???????????????????????????## ##????????????????? | | ???????????????????????#??## ####???? ?????????? | | ?????????????????????????## ##???????????#??? | | ????????????????????????#?# #??????????????? | | ???????????????????#??????# ###?????????????? | | ??????????????????????????# #?##????????#???? | | ??????????????????#????##?# ##%##????#??????? | | ?????????????????????#????## # #?#????? | | ?????????????????????#????### #?? ???????? | | ??????????????????#????????## # ### #??????#???? | | ???????????????#?????#???#?# ##??? ## ????????? | | ?????????????????????????#?## #?????#????? ????? | | ??????????????????#???#??#### #?????????? ?????? | | ?????????????#???????????# # #????????????????? | | ???????????????????????#?# c##? ??????????????? | | ??????????????????#??????# #????????????????? | | ?????????????????????????# ####? ?????????????? | | ?????????????????????????## ##???? ?????????????? | | ???????????????????#??????# #????????????#??????? | | ???????????????????# ???## #???? ????#?????????? | | ???????????????????# ## ### #?????????? | | ?????????????? ????# @RR #?????????? | | ???????????????????# #?????????? | | ???????????????????# #????????? | | ???????????????????# ????????? | | ???????????????????# "" ?????????? | | ?????????????????? " ## ?????????? | | ????????????????? " ?# ## ?????????? | | ???????????????? ## ? ##????????????? | | ?????????????? #?## ? ### #?????????????? | | ????????????? ????#?? #??# ##?????????????? | | ?????????????? ???????? #???##??????????????? | | ?????????????? ???????? ???????????????????? | | ????????????????????????? ???????????????????? | | ????????????????????????? ???????????????????? | | ????????????????????????? ???????????????????? | | ??????????????????????????? ?????????????????????? | | ?????????????????????????????????????????????????? | | ?????????????????????????????????????????????????? | | ?????????????????????????????????????????????????? | | ?????????????????????????????????????????????????? | | ?????????????????????????????????????????????????? | | ?????????????????????????????????????????????????? | | ?????????????????????????????????????????????????? | | ?????????????????????????????????????????????????? | | ?????????????????????????????????????????????????? | +----------------------------------------------------+ Best States ------------- Heat Dissipation 25 Energy Generation 14 Energy Capacity 250 Matter Stores 300 Matter Capacity 300 Sight Range 16 Terrain Scan Range 16 Terrain Scan Density 10 Evasion (%) 44 Targeting Accuracy 5 Recoil Reduction 2 Item Schematics ----------------- None Robot Schematics ------------------ None Fabricated ------------ Nothing Repaired ---------- Nothing Alien Tech Used ----------------- None Achievements -------------- None Challenges ------------ None Game ------ Seed ReflectiveAntigravCoupler Manual? 0 Play Time 00:08:39 Cumulative 71.2 hours Start 2025.05.10 @ 22:53:41 End 2025.05.10 @ 23:01:30 Sessions 1 Manual Loads 0 Difficulty Rogue Special Mode None Game No. 68 Rogue 68 Adventurer 0 Explorer 0 Win Type - Total 1 Types 1/0/0/0/0/0/0/0/0/0 Lore% 44 Gallery% 46 Achievement% 42 Wizard Run 0 Options --------- Layout 1 ASCII 0 Keyboard 1 Movement Numpad Keybinds 0 Fullscreen 1 Font 32/SmallcapsGlow Map View 50x35 Zoom Use 0% Tactical HUD 0 Map Filters NONE Filters NONE Steam 1 RUN: 803075ed-55b6-4c6d-b333-d5d9452ba271